lending/lending_fUSD_20260204
["ID","MTS","AMOUNT","RATE_DAILY","PERIOD"]
[404508762,1770232239671,-4110.09685058,0.00016774,2]
[404508763,1770232239681,-2500.0,0.00016792,2]
[404508764,1770232239691,-1826.91110422,0.00016792,2]
[404508765,1770232239700,-3396.65679022,0.00016796,2]
[404508766,1770232239710,-160.0,0.00016845,2]
[404508767,1770232239720,-481.28670728,0.00016862,2]
[404508768,1770232239729,-300.0,0.00017,2]
[404508769,1770232239739,-500.0,0.00017003,2]
[404508770,1770232239748,-500.0,0.00017132,2]
[404508771,1770232239758,-500.0,0.00017132,2]
[404508772,1770232239768,-178.59,0.00017217,2]
[404508773,1770232239777,-481.28670728,0.00017273,2]
[404508774,1770232239788,-4110.09685058,0.00017337,2]
[404508775,1770232239800,-3000.0,0.0001734,2]
[404508776,1770232239809,-3396.65679022,0.00017348,2]
[404508777,1770232239819,-13946.27289104,0.00017432,2]
[404508778,1770232239828,-18869.796,0.00017432,2]
[404508779,1770232239838,-6693.2336294,0.00017545,2]
[404508780,1770232239847,-1133.0,0.000176,5]
[404508781,1770232239858,-150.0,0.00017637,2]
[404508782,1770232239868,-481.28670728,0.00017685,2]
[404508783,1770232239877,-436.0,0.00017808,2]
[404508784,1770232239888,-38230.0690539,0.0001783,2]
[404508785,1770232239899,-436.0,0.00017863,2]
[404508786,1770232239909,-3500.0,0.00017888,2]
[404508787,1770232239918,-5000.0,0.000179,2]
[404508788,1770232239928,-190.51319598,0.000179,2]
[404508789,1770232239937,-3396.65679022,0.000179,2]
[404508790,1770232239948,-181.84086707,0.000179,2]
[404508791,1770232239957,-4110.09685058,0.000179,2]
[404508792,1770232239967,-500.0,0.000179,2]
[404508793,1770232239978,-500.0,0.000179,2]
[404508794,1770232239987,-500.0,0.000179,2]
[404508795,1770232239996,-500.0,0.000179,2]
[404508796,1770232240007,-500.0,0.000179,2]
[404508797,1770232240020,-500.0,0.000179,2]
[404508798,1770232240029,-500.0,0.000179,2]
[404508799,1770232240039,-437.44898124,0.000179,2]
[404508800,1770232240049,-436.0,0.00017918,2]
[404508801,1770232240058,-500.0,0.00017959,3]
[404508802,1770232240067,-436.0,0.00017972,2]
[404508803,1770232240076,-500.0,0.00017973,2]
[404508804,1770232240085,-500.0,0.00017973,2]
[404508805,1770232240095,-500.0,0.00017973,2]
[404508806,1770232240104,-500.0,0.00017973,2]
[404508807,1770232240113,-293.82457575,0.00017973,2]
[404508808,1770232240123,-500.0,0.00017973,2]
[404508809,1770232240131,-599.14413433,0.00017973,2]
[404508810,1770232240141,-500.0,0.00017973,2]
[404508811,1770232240150,-500.0,0.00017973,2]
[404508812,1770232240159,-500.0,0.00017973,2]
[404508813,1770232240168,-500.0,0.00017973,2]
[404508814,1770232240178,-501.89927416,0.00017973,2]
[404508815,1770232240187,-500.3243835,0.00017973,2]
[404508816,1770232240196,-500.0,0.00017973,2]
[404508817,1770232240206,-500.0,0.00017973,2]
[404508818,1770232240215,-173.24261396,0.00017973,2]
[404508819,1770232240225,-500.0,0.00017973,2]
[404508820,1770232240235,-500.0,0.00017973,2]
[404508821,1770232240244,-500.0,0.00017973,2]
[404508822,1770232240253,-500.0,0.00017973,2]
[404508823,1770232240262,-500.0,0.00017973,2]
[404508824,1770232240272,-501.04094175,0.00017973,2]
[404508825,1770232240282,-500.0,0.00017973,2]
[404508826,1770232240291,-500.0,0.00017973,2]
[404508827,1770232240301,-500.0,0.00017973,2]
[404508828,1770232240310,-500.0,0.00017973,2]
[404508829,1770232240319,-500.0,0.00017973,2]
[404508830,1770232240328,-500.0,0.00017973,2]
[404508831,1770232240337,-500.0,0.00017973,2]
[404508832,1770232240349,-500.0,0.00017973,2]
[404508833,1770232240360,-500.0,0.00017973,2]
[404508834,1770232240370,-500.0,0.00017973,2]
[404508835,1770232240392,-500.0,0.00017973,2]
[404508836,1770232240402,-349.75358634,0.00017973,2]
[404508837,1770232240411,-500.0,0.00017973,2]
[404508838,1770232240421,-500.0,0.00017973,2]
[404508839,1770232240432,-500.0,0.00017973,2]
[404508840,1770232240441,-500.0,0.00017973,2]
[404508841,1770232240450,-500.0,0.00017973,2]
[404508842,1770232240460,-500.0,0.00017973,2]
[404508843,1770232240470,-500.0,0.00017973,2]
[404508844,1770232240480,-500.0,0.00017973,2]
[404508845,1770232240490,-500.0,0.00017973,2]
[404508846,1770232240499,-500.0,0.00017973,2]
[404508847,1770232240510,-500.0,0.00017973,2]
[404508848,1770232240519,-500.0,0.00017973,2]
[404508849,1770232240529,-500.0,0.00017973,2]
[404508850,1770232240539,-500.0,0.00017973,2]
[404508851,1770232240551,-500.0,0.00017973,2]
[404508852,1770232240560,-500.0,0.00017973,2]
[404508853,1770232240571,-500.0,0.00017973,2]
[404508854,1770232240580,-500.40903786,0.00017973,2]
[404508855,1770232240591,-577.54146151,0.00017973,2]
[404508856,1770232240601,-500.0,0.00017973,2]
[404508857,1770232240611,-500.0,0.00017982,2]
[404508858,1770232240621,-456.738324,0.00017983,2]
[404508859,1770232240631,-152.38,0.0001799,2]
[404508860,1770232240642,-152.38,0.0001799,2]
[404508861,1770232240653,-200.0,0.00017998,2]
[404508862,1770232240664,-200.0,0.00017998,3]
[404508863,1770232240674,-200.0,0.00017998,4]
[404508864,1770232240684,-200.0,0.00017998,5]
[404508865,1770232240694,-200.0,0.00017998,6]
[404508866,1770232240705,-200.0,0.00017998,7]
[404508867,1770232240715,-200.0,0.00017998,8]
[404508868,1770232240726,-200.0,0.00017998,9]
[404508869,1770232240735,-200.0,0.00017998,10]
[404508870,1770232240745,-200.0,0.00017998,11]
[404508871,1770232240755,-200.0,0.00017998,12]
[404508872,1770232240766,-200.0,0.00017998,13]
[404508873,1770232240775,-323.11245023,0.00017998,14]
[404508874,1770232240784,-150.0,0.00017999,2]
[404508875,1770232240797,-187.66498297,0.00017999,2]
[404508876,1770232240807,-42233.1073768,0.00017999,2]
[404508877,1770232240817,-300.162,0.00017999,2]
[404508878,1770232240828,-196.3623484,0.00017999,2]
[404508879,1770232240838,-300.0,0.00017999,2]
[404508880,1770232240848,-300.0,0.00017999,2]
[404508881,1770232240858,-5608223.30354039,0.00018,2]
[404508882,1770232241654,-1842.029357,0.00018,2]
[404508883,1770232241669,-1310.4735514,0.00018,2]
[404508884,1770232241680,-431.68655482,0.00018,2]
[404508885,1770232241690,-22230.28660896,0.00018,2]
[404508886,1770232241701,-562.53137085,0.00018,2]
[404508887,1770232241716,-1539002.16183362,0.00018,2]
[404508888,1770232241726,-1000.88510827,0.00018,2]
[404508889,1770232241735,-2001.10148409,0.00018,2]
[404508890,1770232241743,-1100.68,0.00018,7]
[404508891,1770232241753,-200.0,0.00018,2]
[404508892,1770232241763,-2000.0,0.00018,2]
[404508893,1770232241772,-171.24717971,0.00018,2]
[404508894,1770232241781,-200.0,0.00018,2]
[404508895,1770232241790,-200.0,0.00018,2]
[404508896,1770232241802,-5800.0,0.00018003,2]
[404508897,1770232241811,-533.0,0.0001801,2]
[404508898,1770232241820,-436.0,0.00018027,2]
[404508899,1770232241830,-450.0,0.00018074,2]
[404508900,1770232241840,-359.0,0.0001808,2]
[404508901,1770232241849,-436.0,0.00018082,2]
[404508902,1770232241858,-359.0,0.00018094,2]
[404508903,1770232241867,-481.28670728,0.00018096,2]
[404508904,1770232241880,-1780.59304592,0.000181,2]
[404508905,1770232241890,-1365.0,0.00018109,2]
[404508906,1770232241899,-359.0,0.00018124,2]
[404508907,1770232241908,-436.0,0.00018137,2]
[404508908,1770232241917,-200.0,0.0001818,2]
[404508909,1770232241927,-1000.0,0.00018184,2]
[404508910,1770232241936,-436.0,0.00018192,2]
[404508911,1770232241947,-1365.0,0.00018199,2]
[404508912,1770232241958,-436.0,0.00018246,2]
[404508913,1770232241967,-436.0,0.00018301,2]
[404508914,1770232241976,-480.0,0.00018306,2]
[404508915,1770232241985,-200.0,0.00018319,2]
[404508916,1770232241995,-1365.0,0.00018324,2]
[404508917,1770232242006,-359.0,0.0001833,2]
[404508918,1770232242017,-300.0,0.00018355,2]
[404508919,1770232242028,-300.0,0.00018355,2]
[404508920,1770232242038,-436.0,0.00018356,2]
[404508921,1770232242049,-88543.16,0.00018356,2]
[404508922,1770232242058,-155.0,0.00018359,2]
[404508923,1770232242067,-1365.0,0.00018368,2]
[404508924,1770232242076,-436.0,0.00018411,2]
[404508925,1770232242085,-1365.0,0.00018428,2]
[404508926,1770232242095,-1365.0,0.00018432,2]
[404508927,1770232242106,-4000.0,0.00018436,2]
[404508928,1770232242118,-359.0,0.0001845,2]
[404508929,1770232242127,-436.0,0.00018466,2]
[404508930,1770232242137,-481.28670728,0.00018507,2]
[404508931,1770232242146,-359.0,0.00018516,2]
[404508932,1770232242155,-300.0,0.0001852,2]
[404508933,1770232242165,-436.0,0.0001852,2]
[404508934,1770232242176,-1000.0,0.00018521,2]
[404508935,1770232242186,-1000.0,0.00018521,2]
[404508936,1770232242197,-510.18045703,0.00018521,2]
[404508937,1770232242206,-326.63399032,0.00018521,2]
[404508938,1770232242216,-1000.0,0.00018521,2]
[404508939,1770232242226,-1000.0,0.00018521,2]
[404508940,1770232242236,-808.69765385,0.00018521,2]
[404508941,1770232242246,-1000.0,0.00018521,2]
[404508942,1770232242256,-1000.0,0.00018521,2]
[404508943,1770232242266,-1000.0,0.00018521,2]
[404508944,1770232242276,-1000.0,0.00018521,2]
[404508945,1770232242285,-1000.0,0.00018521,2]
[404508946,1770232242296,-1000.0,0.00018521,2]
[404508947,1770232242305,-1000.0,0.00018521,2]
[404508948,1770232242314,-1000.0,0.00018521,2]
[404508949,1770232242323,-1061.0437287,0.00018521,2]
[404508950,1770232242333,-1000.0,0.00018521,2]
[404508951,1770232242342,-1020.51877833,0.00018521,2]
[404508952,1770232242355,-1000.0,0.00018521,2]
[404508953,1770232242365,-1000.0,0.00018521,2]
[404508954,1770232242374,-1000.0,0.00018521,2]
[404508955,1770232242383,-258.92348319,0.00018521,2]
[404508956,1770232242394,-1000.0,0.00018521,2]
[404508957,1770232242406,-1000.0,0.00018521,2]
[404508958,1770232242417,-1000.0,0.00018521,2]
[404508959,1770232242427,-1000.0,0.00018521,2]
[404508960,1770232242436,-1000.0,0.00018521,2]
[404508961,1770232242446,-1000.0,0.00018521,2]
[404508962,1770232242455,-1000.0,0.00018521,2]
[404508963,1770232242465,-1001.08336444,0.00018521,2]
[404508964,1770232242474,-1000.0,0.00018521,2]
[404508965,1770232242483,-1000.0,0.00018521,2]
[404508966,1770232242493,-1000.0,0.00018521,2]
[404508967,1770232242502,-1000.0,0.00018521,2]
[404508968,1770232242511,-1000.0,0.00018521,2]
[404508969,1770232242521,-1000.0,0.00018521,2]
[404508970,1770232242530,-1000.0,0.00018521,2]
[404508971,1770232242539,-1000.0,0.00018521,2]
[404508972,1770232242550,-1000.0,0.00018521,2]
[404508973,1770232242559,-1000.0,0.00018521,2]
[404508974,1770232242568,-1000.0,0.00018521,2]
[404508975,1770232242578,-500.0,0.00018521,2]
[404508976,1770232242588,-1000.0,0.00018521,2]
[404508977,1770232242598,-1000.0,0.00018521,2]
[404508978,1770232242607,-1000.0,0.00018521,2]
[404508979,1770232242618,-359.0,0.00018528,2]
[404508980,1770232242627,-359.0,0.00018536,2]
[404508981,1770232242636,-436.0,0.00018575,2]
[404508982,1770232242645,-4070.24,0.00018629,2]
[404508983,1770232242654,-436.0,0.0001863,2]
[404508984,1770232242663,-533.0,0.00018636,2]
[404508985,1770232242673,-1389.943055,0.00018667,7]
[404508986,1770232242682,-308.46766614,0.00018674,2]
[404508987,1770232242692,-436.0,0.00018685,2]
[404508988,1770232242701,-359.0,0.00018707,2]
[404508989,1770232242710,-155.0,0.00018719,2]
[404508990,1770232242719,-150.0,0.00018724,7]
[404508991,1770232242729,-181.908566,0.00018724,7]
[404508992,1770232242738,-213.817133,0.00018724,7]
[404508993,1770232242748,-245.725699,0.00018724,7]
[404508994,1770232242757,-277.634266,0.00018724,7]
[404508995,1770232242766,-309.542832,0.00018724,7]
[404508996,1770232242775,-341.451399,0.00018724,7]
[404508997,1770232242784,-373.359966,0.00018724,7]
[404508998,1770232242793,-405.268532,0.00018724,7]
[404508999,1770232242804,-437.177099,0.00018724,7]
[404509000,1770232242813,-436.0,0.0001874,2]
[404509001,1770232242822,-178.59,0.00018782,2]
[404509002,1770232242831,-1365.0,0.00018784,2]
[404509003,1770232242840,-436.0,0.00018794,2]
[404509004,1770232242850,-173.86,0.00018815,2]
[404509005,1770232242859,-436.0,0.00018849,2]
[404509006,1770232242868,-1213.8,0.00018869,2]
[404509007,1770232242878,-16795.17339208,0.00018888,2]
[404509008,1770232242887,-359.0,0.00018891,2]
[404509009,1770232242898,-223.4546,0.000189,2]
[404509010,1770232242907,-436.0,0.00018904,2]
[404509011,1770232242917,-481.28670728,0.00018919,2]
[404509012,1770232242927,-917.0,0.0001894,2]
[404509013,1770232242938,-1205.0,0.0001894,2]
[404509014,1770232242948,-568.0,0.0001894,2]
[404509015,1770232242957,-2445.0,0.0001894,2]
[404509016,1770232242966,-6580.0,0.0001894,2]
[404509017,1770232242975,-436.0,0.00018959,2]
[404509018,1770232242984,-785.27371838,0.00018984,2]
[404509019,1770232242994,-5987.85099973,0.00019,2]
[404509020,1770232243002,-5172.37306373,0.00019,2]
[404509021,1770232243011,-743.70064085,0.00019,2]
[404509022,1770232243020,-657.39506443,0.00019,2]
[404509023,1770232243029,-350.0,0.00019,2]
[404509024,1770232243039,-166.66,0.00019009,2]
[404509025,1770232243049,-358.8917737,0.0001901,7]
[404509026,1770232243058,-436.0,0.00019013,2]
[404509027,1770232243067,-359.0,0.00019034,2]
[404509028,1770232243078,-500.0,0.00019044,2]
[404509029,1770232243087,-150.0,0.00019057,2]
[404509030,1770232243097,-437.88177425,0.00019068,2]
[404509031,1770232243107,-1500.0,0.00019068,2]
[404509032,1770232243116,-1500.0,0.00019068,2]
[404509033,1770232243126,-1500.0,0.00019068,2]
[404509034,1770232243135,-1500.0,0.00019068,2]
[404509035,1770232243146,-1500.0,0.00019068,2]
[404509036,1770232243155,-1500.0,0.00019068,2]
[404509037,1770232243164,-1506.17207887,0.00019068,2]
[404509038,1770232243173,-1500.0,0.00019068,2]
[404509039,1770232243183,-1509.54743966,0.00019068,2]
[404509040,1770232243193,-1500.0,0.00019068,2]
[404509041,1770232243202,-1500.0,0.00019068,2]
[404509042,1770232243211,-1500.0,0.00019068,2]
[404509043,1770232243220,-1500.0,0.00019068,2]
[404509044,1770232243230,-1500.0,0.00019068,2]
[404509045,1770232243239,-272.17847225,0.00019068,2]
[404509046,1770232243247,-1500.0,0.00019068,2]
[404509047,1770232243256,-190.50251183,0.00019068,2]
[404509048,1770232243265,-1506.20072576,0.00019068,2]
[404509049,1770232243274,-1386.548455,0.00019068,2]
[404509050,1770232243283,-1500.0,0.00019068,2]
[404509051,1770232243293,-243.06542689,0.00019068,2]
[404509052,1770232243303,-1506.11271357,0.00019068,2]
[404509053,1770232243312,-1088.42408822,0.00019068,2]
[404509054,1770232243321,-1500.0,0.00019068,2]
[404509056,1770232243330,-198.7436522,0.00019068,2]
[404509058,1770232243339,-1500.0,0.00019068,2]
[404509060,1770232243350,-1500.0,0.00019068,2]
[404509063,1770232243360,-1500.0,0.00019068,2]
[404509066,1770232243370,-1500.0,0.00019068,2]
[404509068,1770232243380,-1500.0,0.00019068,2]
[404509072,1770232243390,-1500.0,0.00019068,2]
[404509074,1770232243403,-1500.0,0.00019068,2]
[404509076,1770232243412,-1500.0,0.00019068,2]
[404509078,1770232243421,-1500.0,0.00019068,2]
[404509080,1770232243431,-1511.05293848,0.00019068,2]
[404509082,1770232243440,-1508.52351099,0.00019068,2]
[404509083,1770232243450,-792.28447757,0.00019068,2]
[404509084,1770232243459,-155.0,0.00019079,2]
[404509085,1770232243469,-359.0,0.00019081,2]
[404509086,1770232243478,-6693.2336294,0.00019083,2]
[404509087,1770232243488,-1365.0,0.00019123,2]
[404509088,1770232243497,-359.0,0.00019133,2]
[404509089,1770232243506,-150.0,0.00019137,2]
[404509090,1770232243517,-150.0,0.00019137,2]
[404509091,1770232243526,-150.0,0.00019137,2]
[404509092,1770232243535,-150.0,0.00019137,2]
[404509093,1770232243546,-150.0,0.00019137,2]
[404509094,1770232243556,-150.0,0.00019137,2]
[404509095,1770232243565,-150.0,0.00019137,2]
[404509096,1770232243574,-150.0,0.00019137,2]
[404509097,1770232243584,-1335.0,0.00019137,2]
[404509098,1770232243594,-3482.0,0.00019137,2]
[404509099,1770232243603,-616.0,0.00019137,2]
[404509100,1770232243613,-1410.0,0.00019137,2]
[404509101,1770232243622,-150.0,0.00019137,2]
[404509102,1770232243632,-1271.0,0.00019137,2]
[404509103,1770232243641,-359.0,0.00019152,2]
[404509104,1770232243651,-3000.0,0.00019178,2]
[404509105,1770232243660,-3005.49306087,0.00019178,7]
[404509106,1770232243670,-500.0,0.00019178,2]
[404509107,1770232243679,-20149.24,0.00019178,2]
[404509108,1770232243689,-150.0,0.00019178,2]
[404509109,1770232243699,-160.8925756,0.00019178,2]
[404509110,1770232243707,-1365.0,0.00019204,2]
[404509111,1770232243717,-359.0,0.00019213,2]
[404509112,1770232243726,-500.0,0.00019233,2]
[404509113,1770232243737,-533.0,0.00019262,3]
[404509114,1770232243746,-500.0,0.00019288,2]
[404509115,1770232243755,-1365.0,0.00019324,2]
[404509116,1770232243765,-157.90742177,0.00019342,2]
[404509117,1770232243774,-155.0,0.00019439,2]
[404509118,1770232243785,-1000.0,0.00019452,2]
[404509119,1770232243794,-2236.9253549,0.00019581,2]
[404509120,1770232243804,-2000.0,0.00019616,2]
[404509121,1770232243814,-2000.0,0.00019616,2]
[404509122,1770232243823,-408.09735304,0.00019616,2]
[404509123,1770232243832,-2000.0,0.00019616,2]
[404509124,1770232243842,-2000.0,0.00019616,2]
[404509125,1770232243851,-625.65181569,0.00019616,2]
[404509126,1770232243861,-2000.0,0.00019616,2]
[404509127,1770232243871,-2000.0,0.00019616,2]
[404509128,1770232243881,-2000.0,0.00019616,2]
[404509129,1770232243890,-2000.0,0.00019616,2]
[404509130,1770232243900,-401.53386692,0.00019616,2]
[404509131,1770232243910,-2000.0,0.00019616,2]
[404509132,1770232243919,-455.50158308,0.00019616,2]
[404509133,1770232243928,-2000.0,0.00019616,2]
[404509134,1770232243938,-489.35971528,0.00019616,2]
[404509135,1770232243947,-509.0732028,0.00019616,2]
[404509136,1770232243956,-2000.0,0.00019616,2]
[404509137,1770232243966,-2000.0,0.00019616,2]
[404509138,1770232243976,-2000.0,0.00019616,2]
[404509139,1770232243985,-2000.0,0.00019616,2]
[404509140,1770232243995,-2000.0,0.00019616,2]
[404509141,1770232244005,-2000.0,0.00019616,2]
[404509142,1770232244014,-176.49864446,0.00019616,2]
[404509143,1770232244024,-2000.0,0.00019616,2]
[404509144,1770232244034,-166.66,0.00019636,2]
[404509145,1770232244045,-500.0,0.00019726,2]
[404509146,1770232244055,-1000.0,0.00019726,2]
[404509147,1770232244064,-250.0,0.00019726,2]
[404509148,1770232244074,-500.0,0.00019781,2]
[404509149,1770232244084,-151.45333835,0.00019791,2]
[404509150,1770232244093,-155.0,0.00019799,2]
[404509151,1770232244103,-500.0,0.00019808,2]
[404509152,1770232244113,-500.0,0.00019808,2]
[404509153,1770232244122,-500.0,0.00019836,2]
[404509154,1770232244132,-533.0,0.00019889,3]
[404509155,1770232244141,-500.0,0.0001989,2]
[404509156,1770232244150,-500.0,0.00019945,2]
[404509157,1770232244160,-90340.10125264,0.0001995,15]
[404509158,1770232244169,-240.99426712,0.0001996,2]
[404509159,1770232244179,-500.0,0.0001997,2]
[404509160,1770232244188,-150.0,0.00019973,2]
[404509161,1770232244197,-300.0,0.00019973,2]
[404509162,1770232244207,-500.0,0.00019973,2]
[404509163,1770232244216,-150.0,0.00019973,2]
[404509164,1770232244225,-164.51781159,0.00019973,2]
[404509165,1770232244235,-300.0,0.00019999,2]
[404509166,1770232244244,-500.0,0.0002,2]
[404509167,1770232244254,-590.56,0.0002,20]
[404509168,1770232244263,-1534.29073039,0.0002,2]
[404509169,1770232244273,-176.62256918,0.0002,2]
[404509170,1770232244282,-1469.05722448,0.0002,5]
[404509171,1770232244293,-25611.76994864,0.0002,2]
[404509172,1770232244305,-368042.19107346,0.0002,4]
[404509173,1770232244315,-2464.68,0.0002,2]
[404509174,1770232244325,-8300.0,0.0002,4]
[404509175,1770232244335,-3950.0,0.0002,2]
[404509176,1770232244345,-25387.00718571,0.0002,20]
[404509177,1770232244356,-7351.33850473,0.0002,14]
[404509178,1770232244366,-1295.36553789,0.0002,2]
[404509179,1770232244376,-2940.98518203,0.0002,7]
[404509180,1770232244385,-529.87497421,0.0002,7]
[404509181,1770232244394,-1045.6312059,0.0002,2]
[404509182,1770232244404,-2865.45987564,0.0002,2]
[404509183,1770232244413,-2173.86919942,0.0002,7]
[404509184,1770232244422,-12932.28744356,0.0002,2]
[404509185,1770232244434,-152.0,0.0002,2]
[404509186,1770232244443,-160.0,0.0002,7]
[404509187,1770232244453,-2876.560162,0.0002,2]
[404509188,1770232244462,-151.38954661,0.0002,20]
[404509189,1770232244471,-200.0,0.0002,2]
[404509190,1770232244480,-1000.0,0.0002,7]
[404509191,1770232244490,-1000.0,0.0002,2]
[404509192,1770232244500,-1000.0,0.00020003,2]
[404509193,1770232244509,-8720.0,0.0002001,2]
[404509194,1770232244519,-625.34337535,0.00020055,2]
[404509195,1770232244529,-300.0,0.00020163,2]
[404509196,1770232244538,-2239.79106788,0.00020164,2]
[404509197,1770232244549,-1989.83814395,0.00020164,2]
[404509198,1770232244559,-2500.0,0.00020164,2]
[404509199,1770232244569,-2500.0,0.00020164,2]
[404509200,1770232244578,-474.64879752,0.00020164,2]
[404509201,1770232244588,-2000.0,0.00020164,2]
[404509202,1770232244597,-504.2260666,0.00020164,2]
[404509203,1770232244608,-2500.0,0.00020164,2]
[404509204,1770232244619,-2148.37952875,0.00020164,2]
[404509205,1770232244630,-319.67317474,0.00020164,2]
[404509206,1770232244640,-1080.67227707,0.00020164,2]
[404509207,1770232244650,-2500.0,0.00020164,2]
[404509208,1770232244660,-1216.63993214,0.00020164,2]
[404509209,1770232244670,-2244.84722854,0.00020164,2]
[404509210,1770232244679,-1008.78286515,0.00020164,2]
[404509211,1770232244689,-1191.02177734,0.00020164,2]
[404509212,1770232244699,-2179.85333757,0.00020164,2]
[404509213,1770232244709,-868.9,0.00020246,2]
[404509214,1770232244718,-166.66,0.00020263,2]
[404509215,1770232244727,-1000.0,0.00020274,2]
[404509216,1770232244737,-264.22164046,0.00020274,2]
[404509217,1770232244747,-773.23,0.00020274,2]
[404509218,1770232244757,-240.99426712,0.0002038,2]
[404509219,1770232244767,-533.0,0.00020515,4]
[404509220,1770232244777,-300.0,0.00020521,2]
[404509221,1770232244787,-600.0,0.00020521,2]
[404509222,1770232244799,-523.03396718,0.00020521,2]
[404509223,1770232244808,-250.0,0.00020521,2]
[404509224,1770232244818,-154.67,0.00020548,2]
[404509225,1770232244827,-21547.47,0.00020548,2]
[404509226,1770232244837,-1000.0,0.00020548,2]
[404509227,1770232244846,-151.45333835,0.00020615,2]
[404509228,1770232244856,-6693.2336294,0.00020621,2]
[404509229,1770232244867,-502.07138984,0.00020695,2]
[404509230,1770232244876,-502.07138984,0.00020695,2]
[404509231,1770232244886,-502.07138984,0.00020695,2]
[404509232,1770232244895,-22679.44968328,0.000207,2]
[404509233,1770232244909,-3000.0,0.00020712,2]
[404509234,1770232244919,-3000.0,0.00020712,2]
[404509235,1770232244929,-3000.0,0.00020712,2]
[404509236,1770232244939,-3000.0,0.00020712,2]
[404509237,1770232244950,-1213.8,0.00020756,2]
[404509238,1770232244959,-240.99426712,0.000208,2]
[404509239,1770232244971,-1000.0,0.00020822,2]
[404509240,1770232244981,-1100.0,0.0002087,2]
[404509241,1770232244991,-166.66,0.00020891,2]
[404509242,1770232245003,-500.0,0.0002097,2]
[404509243,1770232245012,-700.0,0.0002097,2]
[404509244,1770232245022,-700.0,0.0002097,2]
[404509245,1770232245031,-700.0,0.0002097,2]
[404509246,1770232245040,-700.0,0.0002097,2]
[404509247,1770232245051,-700.0,0.0002097,2]
[404509248,1770232245061,-500.0,0.0002097,2]
[404509249,1770232245071,-500.0,0.0002097,2]
[404509250,1770232245080,-500.0,0.0002097,2]
[404509251,1770232245089,-150.0,0.00020973,2]
[404509252,1770232245098,-300.0,0.00020999,2]
[404509253,1770232245108,-208.0,0.00021,2]
[404509254,1770232245117,-20000.0,0.00021,2]
[404509255,1770232245126,-40000.0,0.00021,2]
[404509256,1770232245135,-20017.85068329,0.00021,5]
[404509257,1770232245144,-1194.71259725,0.00021,2]
[404509258,1770232245153,-197.19724773,0.00021,2]
[404509259,1770232245163,-160.0,0.00021,7]
[404509260,1770232245172,-187128.64610308,0.00021,2]
[404509261,1770232245181,-400.0,0.00021,2]
[404509263,1770232245190,-240.173527,0.00021,10]
[404509265,1770232245199,-240.99426712,0.0002101,2]
[404509267,1770232245208,-173.17487028,0.0002101,2]
[404509269,1770232245218,-12530.87,0.00021068,2]
[404509271,1770232245226,-450.0,0.00021068,2]
[404509273,1770232245235,-900.0,0.00021068,2]
[404509275,1770232245244,-350.0,0.00021068,2]
[404509292,1770232245454,-1000.0,0.00021096,2]
[404509293,1770232245464,-533.0,0.00021141,4]
[404509294,1770232245474,-240.99426712,0.0002122,2]
[404509295,1770232245484,-3500.0,0.0002126,2]
[404509296,1770232245493,-626.51196031,0.0002126,2]
[404509297,1770232245502,-1571.86644552,0.0002126,2]
[404509298,1770232245512,-3500.0,0.0002126,2]
[404509299,1770232245522,-9423.4800125,0.0002127,2]
[404509300,1770232245532,-6385.85,0.0002137,2]